bitfinex/quotes_BTCUSD_20230901
["timestamp","ask_amount","ask_price","bid_price","bid_amount"]
[1693581035655,0.2082574,25789.0,25788.0,0.35902317]
[1693581036259,0.0469574,25789.0,25788.0,0.74610995]
[1693581037025,0.0479574,25789.0,25788.0,0.78310995]
[1693581037399,0.0479574,25789.0,25788.0,1.01150876]
[1693581037400,4e-07,25789.0,25788.0,1.01150876]
[1693581037715,0.00099906,25794.0,25788.0,0.97285876]
[1693581037716,0.06099906,25794.0,25788.0,0.97285876]
[1693581037846,0.02011398,25789.0,25788.0,0.58577198]
[1693581038051,0.02011398,25789.0,25788.0,0.62442198]
[1693581038257,0.24989906,25794.0,25792.0,0.03865]
[1693581038463,0.24989906,25794.0,25792.0,0.05902317]
[1693581038862,0.2343,25797.0,25793.0,0.02037317]
[1693581039073,0.04,25796.0,25794.0,0.02037317]
[1693581039299,0.02011955,25796.0,25794.0,0.02037317]
[1693581039508,0.02011955,25796.0,25795.0,0.05902317]
[1693581039727,0.00098732,25798.0,25797.0,0.02037317]
[1693581039948,0.2213,25800.0,25797.0,0.03865]
[1693581040162,0.2213,25800.0,25796.0,0.02037317]
[1693581040163,0.2013,25798.0,25796.0,0.02037317]
[1693581040366,0.06,25798.0,25795.0,0.02037317]
[1693581040583,0.2213,25798.0,25796.0,0.02037317]
[1693581040791,0.2213,25798.0,25796.0,0.05902317]
[1693581040993,0.05556659,25797.0,25796.0,0.03865]
[1693581041552,0.01556659,25797.0,25796.0,0.03865]
[1693581042031,0.1613,25800.0,25796.0,0.03865]
[1693581042032,0.06,25799.0,25796.0,0.03865]
[1693581042243,0.2013,25800.0,25796.0,0.44610995]
[1693581042444,0.2013,25800.0,25797.0,0.05902317]
[1693581042445,0.04,25799.0,25797.0,0.05902317]
[1693581042857,0.035,25799.0,25797.0,0.05902317]
[1693581043109,0.15658979,25802.0,25797.0,0.05902317]
[1693581043318,0.1623,25800.0,25797.0,0.09602317]
[1693581043725,0.1613,25800.0,25797.0,0.05902317]
[1693581043973,0.0155047,25799.0,25797.0,0.09602317]
[1693581044177,0.02,25804.0,25797.0,0.09602317]
[1693581044178,0.03962683,25814.0,25807.0,0.02]
[1693581044373,0.1613,25805.0,25803.0,0.02037317]
[1693581044556,0.10682683,25809.0,25803.0,0.02037317]
[1693581044854,0.10682683,25809.0,25802.0,0.02037317]
[1693581044855,0.46358678,25808.0,25802.0,0.02037317]
[1693581045051,0.61908149,25808.0,25802.0,0.02037317]
[1693581045288,0.231,25807.0,25803.0,0.02037317]
[1693581045499,0.1613,25804.0,25803.0,0.02037317]
[1693581047436,0.1563,25804.0,25803.0,0.02037317]
[1693581048075,0.1563,25804.0,25803.0,0.28211325]
[1693581048493,0.3923,25807.0,25806.0,0.02037317]
[1693581048702,0.1613,25807.0,25806.0,0.04037317]
[1693581049528,0.1613,25807.0,25806.0,0.27478119]
[1693581049743,0.1613,25807.0,25806.0,0.04037317]
[1693581050780,0.1613,25807.0,25805.0,0.05902317]
[1693581050984,0.1613,25807.0,25806.0,0.02037317]
[1693581051191,0.1613,25807.0,25805.0,0.05902317]
[1693581051402,0.1613,25807.0,25799.0,0.05100122]
[1693581051613,0.03962683,25805.0,25798.0,0.02037317]
[1693581051836,0.1613,25799.0,25798.0,0.02037317]
[1693581052039,0.1613,25800.0,25798.0,0.02037317]
[1693581052040,0.1604206,25800.0,25798.0,0.02037317]
[1693581052248,0.1613,25799.0,25798.0,0.02037317]
[1693581054068,0.1613,25801.0,25798.0,0.02037317]
[1693581054524,0.1643,25799.0,25798.0,0.05737317]
[1693581055139,0.1643,25799.0,25798.0,0.09602317]
[1693581055346,0.1643,25799.0,25798.0,0.05902317]
[1693581055347,0.1613,25799.0,25798.0,0.05902317]
[1693581055555,0.1613,25799.0,25798.0,0.09602317]
[1693581055978,0.1613,25799.0,25798.0,0.74673415]
[1693581056184,0.003,25801.0,25800.0,0.02037317]
[1693581056392,0.1643,25801.0,25800.0,0.02037317]
[1693581057463,0.1613,25801.0,25798.0,0.02037317]
[1693581057693,0.1613,25799.0,25798.0,0.02037317]
[1693581057897,0.1613,25799.0,25798.0,0.05737317]
[1693581057898,0.1193,25799.0,25798.0,0.05737317]
[1693581058338,0.1163,25799.0,25798.0,0.02037317]
[1693581058540,0.1163,25799.0,25797.0,0.05080394]
[1693581058541,0.50338678,25799.0,25794.0,0.02037317]
[1693581058751,0.1613,25795.0,25791.0,0.02037317]
[1693581058969,0.15483471,25794.0,25791.0,0.02037317]
[1693581059191,0.1613,25792.0,25791.0,0.02037317]
[1693581060035,0.1513,25792.0,25791.0,0.02037317]
[1693581061105,0.1513,25792.0,25791.0,0.04037317]
[1693581061767,0.3126,25792.0,25791.0,0.04037317]
[1693581062200,0.1613,25792.0,25791.0,0.29650883]
[1693581062414,0.1613,25794.0,25791.0,0.37215883]
[1693581062623,0.1643,25792.0,25791.0,0.11602317]
[1693581062849,0.1613,25792.0,25791.0,0.07902317]
[1693581063257,0.1643,25792.0,25791.0,0.11602317]
[1693581063468,0.1643,25792.0,25791.0,0.07737317]
[1693581064094,0.3256,25792.0,25791.0,0.05737317]
[1693581064304,0.3256,25792.0,25791.0,0.037]
[1693581064305,0.71268678,25792.0,25791.0,0.037]
[1693581066389,0.71268678,25792.0,25786.0,0.05128327]
[1693581066390,0.83625361,25792.0,25786.0,0.05128327]
[1693581066598,0.1613,25787.0,25786.0,0.02037317]
[1693581066803,0.31613471,25787.0,25786.0,0.02037317]
[1693581067009,0.70322149,25787.0,25786.0,0.02037317]
[1693581067216,0.70322149,25787.0,25785.0,0.02]
[1693581067217,0.54838678,25787.0,25785.0,0.02037317]
[1693581067426,0.1613,25784.0,25783.0,0.02037317]
[1693581067646,0.86452149,25784.0,25783.0,0.02037317]
[1693581067853,0.86452149,25784.0,25780.0,0.02037317]
[1693581068060,0.54192149,25783.0,25780.0,0.05167135]
[1693581068270,0.53628749,25782.0,25780.0,0.02]
[1693581068476,0.1613,25781.0,25780.0,0.02]
[1693581069776,0.54838678,25781.0,25778.0,0.52]
[1693581069984,0.38708678,25781.0,25780.0,0.24818638]
[1693581070191,0.54838678,25781.0,25780.0,0.24818638]
[1693581070397,0.54838678,25781.0,25780.0,0.028]
[1693581070621,0.54838678,25781.0,25777.0,0.06]
[1693581070846,0.1613,25778.0,25777.0,0.02]
[1693581071059,0.54838678,25778.0,25777.0,0.04]
[1693581071688,0.1613,25778.0,25777.0,0.04]
[1693581071894,0.15120071,25781.0,25777.0,0.04]
[1693581072102,0.002,25781.0,25780.0,0.19626451]
[1693581072304,0.002,25781.0,25780.0,0.20575209]
[1693581072517,0.002,25781.0,25780.0,0.02]
[1693581073388,0.002,25781.0,25780.0,0.51764]
[1693581073608,0.3502,25790.0,25784.0,0.02]
[1693581073814,0.38708678,25789.0,25785.0,0.15483471]
[1693581074445,0.79278678,25789.0,25785.0,0.15483471]
[1693581074651,0.79278678,25789.0,25784.0,0.02]
[1693581074831,0.79278678,25789.0,25785.0,0.20669199]
[1693581075794,0.38708678,25789.0,25785.0,0.15483471]
[1693581075998,0.38708678,25789.0,25785.0,0.39768603]
[1693581076198,0.38708678,25789.0,25785.0,0.24285132]
[1693581077205,0.42208678,25789.0,25785.0,0.003]
[1693581077406,0.035,25789.0,25787.0,0.02]
[1693581078035,0.035,25789.0,25788.0,0.6]
[1693581078237,0.035,25789.0,25788.0,0.68784]
[1693581078460,0.035,25789.0,25788.0,0.68586]
[1693581078668,0.035,25789.0,25788.0,0.68442]
[1693581078873,0.035,25789.0,25788.0,0.68304]
[1693581079048,0.035,25789.0,25788.0,0.69218]
[1693581079302,0.035,25789.0,25788.0,0.62]
[1693581080059,0.7544,25799.0,25789.0,0.08]
[1693581080325,0.4057,25797.0,25790.0,0.15483471]
[1693581080518,0.66208678,25796.0,25790.0,0.15483471]
[1693581081051,0.38708678,25795.0,25791.0,0.15483471]
[1693581081326,0.38708678,25795.0,25789.0,0.08]
[1693581081526,0.53628749,25795.0,25789.0,0.45621083]
[1693581081728,0.53628749,25795.0,25789.0,0.45921083]
[1693581082009,0.14920071,25794.0,25789.0,0.30437612]
[1693581082195,0.38708678,25793.0,25789.0,0.30437612]
[1693581082398,0.94198749,25793.0,25789.0,0.083]
[1693581082523,0.94198749,25793.0,25789.0,0.003]
[1693581082741,0.4057,25791.0,25789.0,0.003]
[1693581083133,0.16920071,25792.0,25789.0,0.003]
[1693581083134,0.81278678,25790.0,25789.0,0.003]
[1693581083308,0.79278678,25790.0,25789.0,0.003]
[1693581083511,0.81278678,25790.0,25789.0,0.003]
[1693581083732,0.81278678,25790.0,25784.0,0.1]
[1693581083958,0.14920071,25789.0,25784.0,0.1]
[1693581084163,0.38708678,25788.0,25784.0,0.1]
[1693581084605,0.003,25790.0,25789.0,0.037]
[1693581084781,0.003,25790.0,25789.0,0.24701867]
[1693581085006,0.003,25790.0,25787.0,0.02]
[1693581085007,0.38708678,25790.0,25787.0,0.02]
[1693581085214,0.3486,25794.0,25786.0,0.6]
[1693581085215,0.38708678,25789.0,25786.0,0.56]
[1693581085413,0.38708678,25789.0,25786.0,0.5]
[1693581085414,0.54528749,25789.0,25786.0,0.5]
[1693581085681,0.39608678,25789.0,25786.0,0.56]
[1693581085882,0.39608678,25789.0,25787.0,0.06851976]
[1693581086899,0.38708678,25789.0,25787.0,0.06851976]
[1693581087725,0.001,25789.0,25787.0,0.08551976]
[1693581088082,0.001,25789.0,25788.0,0.22934642]
[1693581088726,0.001,25789.0,25788.0,0.14]
[1693581088912,0.001,25789.0,25788.0,0.77379258]
[1693581089116,0.001,25789.0,25788.0,0.77427258]
[1693581089279,0.001,25789.0,25788.0,0.77379258]
[1693581089483,0.001,25789.0,25788.0,0.512]
[1693581089700,0.001,25789.0,25788.0,0.51278]
[1693581089902,0.001,25789.0,25788.0,0.5132]
[1693581090104,0.001,25789.0,25788.0,0.51848]
[1693581090351,0.3396,25797.0,25791.0,0.56]
[1693581090554,0.38708678,25796.0,25792.0,0.15483471]
[1693581090969,0.3396,25799.0,25793.0,0.30095918]
[1693581091181,0.3396,25803.0,25794.0,0.15483471]
[1693581091390,0.52594582,25802.0,25794.0,0.15483471]
[1693581091597,0.13885904,25801.0,25794.0,0.15483471]
[1693581091802,0.037,25796.0,25794.0,0.15483471]
[1693581092055,0.037,25796.0,25793.0,0.06]
[1693581092263,0.1872,25799.0,25793.0,0.06]
[1693581092468,0.38708678,25798.0,25793.0,0.21483471]
[1693581092677,0.53628749,25798.0,25793.0,0.06]
[1693581093008,0.38708678,25798.0,25793.0,0.23483471]
[1693581093233,0.38708678,25798.0,25793.0,0.23457371]
[1693581093438,0.1937,25803.0,25794.0,0.07959159]
[1693581093647,0.73326008,25802.0,25796.0,0.559739]
[1693581093876,0.1389733,25801.0,25797.0,0.15483471]
[1693581094070,0.38708678,25800.0,25797.0,0.15483471]
[1693581094270,0.38708678,25800.0,25796.0,0.579739]
[1693581094598,0.38708678,25800.0,25796.0,0.539739]
[1693581094803,0.38708678,25800.0,25796.0,0.579739]
[1693581095219,0.41008678,25800.0,25797.0,0.002]
[1693581096125,0.023,25800.0,25799.0,0.579739]
[1693581096895,0.38708678,25800.0,25799.0,0.5]
[1693581097106,1.17813764,25800.0,25793.0,0.52]
[1693581097307,0.79278678,25796.0,25788.0,0.2324]
[1693581097483,0.4057,25794.0,25788.0,0.059739]
[1693581097686,0.94198749,25793.0,25788.0,0.059739]
[1693581098296,0.94198749,25793.0,25788.0,0.29003257]
[1693581098499,0.94198749,25793.0,25789.0,0.1006465]
[1693581098500,0.38708678,25793.0,25789.0,0.1006465]
[1693581098752,0.38708678,25793.0,25788.0,0.059739]
[1693581098951,0.53628749,25793.0,25788.0,0.32116444]
[1693581099152,0.94198749,25793.0,25788.0,0.059739]
[1693581099794,0.000261,25796.0,25788.0,0.21457371]
[1693581099946,0.38708678,25792.0,25789.0,0.15483471]
[1693581100149,0.38708678,25792.0,25788.0,0.059739]
[1693581100350,0.38708678,25792.0,25787.0,0.5]
[1693581100351,0.14920071,25791.0,25787.0,0.5]
[1693581100553,0.81278678,25790.0,25787.0,0.5]
[1693581100763,0.96198749,25790.0,25787.0,0.5]
[1693581101030,0.96198749,25790.0,25788.0,0.037]
[1693581101031,0.81278678,25790.0,25788.0,0.037]
[1693581101433,0.81278678,25790.0,25787.0,0.5]
[1693581101640,1.04326617,25790.0,25787.0,0.003]
[1693581101837,0.79278678,25788.0,25787.0,0.003]
[1693581102057,0.81278678,25788.0,25783.0,0.5]
[1693581102261,0.53628749,25788.0,25783.0,0.5]
[1693581102899,0.1895,25790.0,25786.0,0.559739]
[1693581103110,0.3868288,25789.0,25786.0,0.71457371]
[1693581103312,0.3868288,25789.0,25786.0,0.559739]
[1693581103732,0.036,25790.0,25786.0,0.80173276]
[1693581103956,0.42308678,25790.0,25787.0,0.059739]
[1693581105051,0.036,25790.0,25787.0,0.21457371]
[1693581105253,0.036,25790.0,25787.0,0.059739]
[1693581105455,0.38708678,25789.0,25787.0,0.059739]
[1693581105884,0.032,25788.0,25787.0,0.062739]
[1693581106263,0.38708678,25789.0,25787.0,0.059739]
[1693581106674,0.38708678,25789.0,25787.0,0.068739]
[1693581107145,0.38708678,25789.0,25787.0,0.059739]
[1693581107356,0.38808678,25789.0,25787.0,0.068739]
[1693581108190,0.38708678,25789.0,25787.0,0.068739]
[1693581108846,0.001,25789.0,25788.0,0.21666831]
[1693581109257,0.001,25789.0,25788.0,0.099739]
[1693581109461,0.001,25789.0,25788.0,0.302039]
[1693581109876,0.4057,25796.0,25790.0,0.559739]
[1693581110088,0.52558048,25795.0,25792.0,0.059739]
[1693581110308,0.38708678,25795.0,25793.0,0.15483471]
[1693581110519,0.38708678,25795.0,25792.0,0.059739]
[1693581111190,0.38608678,25795.0,25793.0,0.5]
[1693581111402,0.5636,25797.0,25788.0,0.059739]
[1693581111403,0.4057,25793.0,25788.0,0.059739]
[1693581111614,0.4057,25791.0,25788.0,0.059739]
[1693581111856,0.38708678,25790.0,25788.0,0.059739]
[1693581112718,0.181,25794.0,25788.0,0.059739]
[1693581112929,0.38708678,25793.0,25790.0,0.559739]
[1693581114241,0.22250829,25800.0,25793.0,0.559739]
[1693581114242,0.032,25795.0,25793.0,0.559739]
[1693581114457,0.001,25800.0,25799.0,0.559739]
[1693581114670,0.001,25800.0,25799.0,0.71457371]
[1693581115091,0.52657709,25800.0,25799.0,0.559739]
[1693581115710,0.13949031,25800.0,25799.0,0.559739]
[1693581115913,0.001,25800.0,25799.0,0.559739]
[1693581116744,0.38808678,25800.0,25799.0,0.559739]
[1693581116955,0.38808678,25800.0,25799.0,0.5]
[1693581117156,0.93206679,25800.0,25799.0,0.49884295]
[1693581117361,0.95106679,25800.0,25797.0,0.059739]
[1693581117585,0.54536679,25799.0,25797.0,0.059739]
[1693581117788,0.40708678,25799.0,25797.0,0.059739]
[1693581118603,0.40708678,25799.0,25797.0,0.061739]
[1693581118813,0.40708678,25799.0,25797.0,0.059739]
[1693581119667,0.53628749,25798.0,25793.0,0.49884295]
[1693581119869,0.53628749,25798.0,25793.0,0.51884295]
[1693581119870,0.4057,25795.0,25793.0,0.51884295]
[1693581120078,0.38708678,25794.0,25793.0,0.49884295]
[1693581120288,0.40708678,25794.0,25793.0,0.49884295]
[1693581120491,0.81278678,25794.0,25793.0,0.49884295]
[1693581122125,0.81578678,25794.0,25793.0,0.53584295]
[1693581122500,0.81278678,25794.0,25793.0,0.49884295]
[1693581122908,0.8702378,25794.0,25793.0,0.002]
[1693581123714,0.8692378,25794.0,25793.0,0.002]
[1693581123914,0.83078678,25794.0,25793.0,0.002]
[1693581125566,0.42508678,25794.0,25793.0,0.002]
[1693581125802,0.40508678,25794.0,25793.0,0.002]
[1693581126005,0.019,25794.0,25793.0,0.60058195]
[1693581126918,0.40608678,25794.0,25793.0,0.60058195]
[1693581127321,0.81178678,25794.0,25793.0,0.50084295]
[1693581127527,0.81086972,25794.0,25793.0,0.50130819]
[1693581127936,0.83086972,25794.0,25793.0,0.50130819]
[1693581128450,0.42516972,25794.0,25793.0,0.50130819]
[1693581128655,0.40516972,25794.0,25793.0,0.50130819]
[1693581130137,0.40516972,25794.0,25793.0,0.56104719]
[1693581130497,0.38708678,25794.0,25793.0,0.55904719]
[1693581131102,0.40708678,25794.0,25793.0,0.55904719]
[1693581132182,0.43508678,25794.0,25793.0,0.56204719]
[1693581132628,0.40708678,25794.0,25793.0,0.55904719]
[1693581133071,0.42208678,25794.0,25793.0,0.56104719]
[1693581136329,0.40208678,25794.0,25793.0,0.56104719]
[1693581136705,0.015,25794.0,25793.0,0.58104719]
[1693581137711,0.015,25794.0,25793.0,0.84076247]
[1693581137927,0.015,25794.0,25793.0,0.86076247]
[1693581139702,0.09182635,25800.0,25793.0,0.85876247]
[1693581139875,0.38708678,25799.0,25798.0,0.57858195]
[1693581140090,0.09182635,25801.0,25798.0,0.73341666]
[1693581140301,0.09182635,25802.0,25801.0,0.04]
[1693581140521,0.09182635,25803.0,25802.0,0.079739]
[1693581140724,0.09182635,25804.0,25803.0,0.57858195]
[1693581140936,0.6169077,25804.0,25803.0,0.73341666]
[1693581141157,0.6169077,25804.0,25803.0,0.57858195]
[1693581141366,0.6169077,25804.0,25800.0,0.49884295]
[1693581141367,1.31024166,25804.0,25800.0,0.49884295]
[1693581141572,0.4057,25801.0,25800.0,0.49884295]
[1693581141809,0.93078135,25801.0,25800.0,0.49884295]
[1693581142012,0.93078135,25801.0,25796.0,0.57858195]
[1693581142248,0.4057,25799.0,25798.0,0.079739]
[1693581142513,0.81278678,25799.0,25798.0,0.079739]
[1693581142721,0.81278678,25799.0,25798.0,0.081739]
[1693581142722,0.38708678,25799.0,25798.0,0.081739]
[1693581143157,0.22962643,25802.0,25799.0,0.57858195]
[1693581143340,0.22962643,25802.0,25800.0,0.079739]
[1693581143341,0.52522296,25801.0,25800.0,0.079739]
[1693581143675,1.04277353,25801.0,25799.0,0.49884295]
[1693581143897,0.56383618,25800.0,25799.0,0.51884295]
[1693581144108,0.95092296,25800.0,25799.0,0.49884295]
[1693581144529,0.95092296,25800.0,25796.0,0.57858195]
[1693581144754,0.4057,25798.0,25796.0,0.57858195]
[1693581145007,0.38708678,25797.0,25796.0,0.57858195]
[1693581147382,0.57490071,25800.0,25797.0,0.079739]
[1693581147383,0.015,25800.0,25797.0,0.079739]
[1693581147590,0.38708678,25799.0,25797.0,0.23457371]
[1693581147795,0.38708678,25799.0,25797.0,0.079739]
[1693581149285,0.38708678,25799.0,25798.0,0.119739]
[1693581149496,0.09185057,25803.0,25802.0,0.57858195]
[1693581149693,0.52524749,25803.0,25802.0,0.73341666]
[1693581149896,0.52524749,25803.0,25802.0,0.57858195]
[1693581150772,0.56124749,25803.0,25802.0,0.58158195]
[1693581151189,0.52524749,25803.0,25802.0,0.57858195]
[1693581151417,0.56124749,25803.0,25802.0,0.58158195]
[1693581151826,0.52524749,25803.0,25802.0,0.57858195]
[1693581152042,0.96594749,25803.0,25802.0,0.58058195]
[1693581153708,0.95094749,25803.0,25802.0,0.57858195]
[1693581153919,0.54524749,25803.0,25802.0,0.57858195]
[1693581154158,0.43608678,25803.0,25802.0,0.58158195]
[1693581154423,0.38708678,25803.0,25802.0,0.57858195]
[1693581154821,0.40208678,25803.0,25802.0,0.58058195]
[1693581155021,0.38708678,25803.0,25802.0,0.57858195]
[1693581156094,0.38908678,25803.0,25802.0,0.57958195]
[1693581156287,0.002,25803.0,25802.0,0.88058854]
[1693581156874,0.002,25803.0,25802.0,0.63958195]
[1693581157708,0.63532643,25809.0,25807.0,0.57858195]
[1693581157709,0.49755057,25808.0,25807.0,0.57858195]
[1693581157910,1.02251091,25808.0,25807.0,0.57858195]
[1693581158122,1.02251091,25808.0,25804.0,0.57858195]
[1693581158383,0.93066034,25807.0,25805.0,0.079739]
[1693581158599,0.02,25806.0,25804.0,0.57858195]
[1693581158798,0.95066034,25806.0,25804.0,0.49884295]
[1693581159042,0.54357356,25805.0,25804.0,0.49884295]
[1693581159247,0.95066034,25805.0,25804.0,0.49884295]
[1693581159873,0.52496034,25805.0,25804.0,0.49884295]
[1693581160080,0.52496034,25805.0,25804.0,0.51884295]
[1693581160294,0.38708678,25805.0,25804.0,0.51884295]
[1693581161338,0.036,25808.0,25805.0,0.019739]
[1693581161584,0.13791299,25807.0,25806.0,0.079739]
[1693581161791,0.38708678,25808.0,25807.0,0.57858195]
[1693581162000,0.38708678,25808.0,25807.0,0.59858195]
[1693581163242,0.38708678,25808.0,25807.0,0.57858195]
[1693581163443,0.40708678,25808.0,25807.0,0.57858195]
[1693581163732,0.44308678,25808.0,25807.0,0.58158195]
[1693581163926,0.58087977,25808.0,25807.0,0.50184295]
[1693581165036,0.54487977,25808.0,25807.0,0.49884295]
[1693581165235,0.42308678,25808.0,25807.0,0.50184295]
[1693581165422,0.42308678,25808.0,25807.0,0.58158195]
[1693581165848,0.1547,25812.0,25808.0,0.02]
[1693581166050,0.52494283,25811.0,25809.0,0.15483471]
[1693581166262,0.13785605,25810.0,25808.0,0.23457371]
[1693581166461,0.52494283,25810.0,25808.0,0.079739]
[1693581166650,0.38708678,25810.0,25808.0,0.079739]
[1693581167231,0.38708678,25810.0,25809.0,0.079739]
[1693581167555,0.52495144,25810.0,25809.0,0.079739]
[1693581169102,0.13786466,25810.0,25809.0,0.119739]
[1693581169312,0.11155057,25816.0,25809.0,0.119739]
[1693581169313,0.11155057,25816.0,25814.0,0.06]
[1693581169567,0.0197,25816.0,25814.0,0.079739]
[1693581169740,0.13786847,25815.0,25814.0,0.079739]
[1693581170520,0.13786847,25815.0,25814.0,0.082739]
[1693581170724,0.93065525,25815.0,25814.0,0.082739]
[1693581170924,0.93065525,25815.0,25814.0,0.079739]
[1693581171342,0.95065525,25815.0,25814.0,0.079739]
[1693581171542,0.95065525,25815.0,25813.0,0.19118334]
[1693581171757,0.95065525,25814.0,25813.0,0.19118334]
[1693581172342,0.98910627,25814.0,25813.0,0.19118334]
[1693581173228,0.95065525,25814.0,25813.0,0.19118334]
[1693581173844,0.96665525,25814.0,25813.0,0.19318334]
[1693581174253,0.95065525,25814.0,25813.0,0.19118334]
[1693581174430,0.97965525,25814.0,25813.0,0.19418334]
[1693581175837,0.97465525,25814.0,25813.0,0.19418334]
[1693581176169,1.79409078,25814.0,25809.0,0.19118334]
[1693581176375,0.4057,25810.0,25809.0,0.19118334]
[1693581176581,1.09985596,25810.0,25809.0,0.19118334]
[1693581176795,0.95065525,25810.0,25809.0,0.19118334]
[1693581177171,0.81278678,25810.0,25809.0,0.19118334]
[1693581177549,0.81278678,25810.0,25807.0,0.02]
[1693581177550,0.7,25814.0,25812.0,0.19118334]
[1693581177750,0.03,25814.0,25813.0,0.003]
[1693581177956,0.13791914,25815.0,25812.0,0.19118334]
[1693581179874,0.13791914,25815.0,25812.0,0.21118334]
[1693581181175,0.0197,25816.0,25814.0,0.02]
[1693581181325,0.0197,25816.0,25815.0,0.19118334]
[1693581181528,0.17726294,25816.0,25815.0,0.19118334]
[1693581181857,0.97004972,25816.0,25815.0,0.19118334]
[1693581182247,0.96846737,25816.0,25815.0,0.19118334]
[1693581183299,0.54276737,25816.0,25815.0,0.19118334]
[1693581183990,0.95046737,25816.0,25815.0,0.20218334]
[1693581184172,0.96846737,25816.0,25812.0,0.21118334]
[1693581184410,0.79278678,25814.0,25812.0,0.19118334]
[1693581184605,0.02,25813.0,25812.0,0.19118334]
[1693581184810,0.81278678,25813.0,25812.0,0.19118334]
[1693581185222,0.95035985,25813.0,25812.0,0.19118334]
[1693581186468,0.54465985,25813.0,25812.0,0.19118334]
[1693581186672,0.52465985,25813.0,25812.0,0.19118334]
[1693581186878,0.38708678,25813.0,25812.0,0.19118334]
[1693581187088,0.38708678,25813.0,25812.0,0.21118334]
[1693581187288,0.38708678,25813.0,25812.0,0.22218334]
[1693581187713,0.38708678,25813.0,25812.0,0.21118334]
[1693581187914,0.38708678,25813.0,25812.0,0.22218334]
[1693581187915,0.38908678,25813.0,25812.0,0.22218334]
[1693581189360,0.002,25813.0,25812.0,0.22218334]
[1693581189562,0.002,25813.0,25812.0,0.44248965]
[1693581189872,0.002,25813.0,25812.0,0.22218334]
[1693581190644,0.52669876,25813.0,25812.0,0.22218334]
[1693581191130,0.38908678,25813.0,25812.0,0.22218334]
[1693581194166,0.002,25813.0,25812.0,0.46964643]
[1693581196187,0.38908678,25813.0,25812.0,0.22218334]
[1693581197858,0.38908678,25813.0,25812.0,0.44897255]
[1693581197859,0.002,25813.0,25812.0,0.44897255]
[1693581198863,0.002,25813.0,25812.0,0.22218334]
[1693581199062,0.38908678,25813.0,25812.0,0.22218334]
[1693581199394,0.52666455,25813.0,25812.0,0.22218334]
[1693581199598,0.54666455,25813.0,25812.0,0.22218334]
[1693581200329,0.95236455,25813.0,25812.0,0.22218334]
[1693581202389,1.04760101,25813.0,25812.0,0.011]
[1693581202641,1.04760101,25813.0,25810.0,0.02]
[1693581202642,0.95236455,25813.0,25810.0,0.02]
[1693581202844,0.79278678,25811.0,25810.0,0.02]
[1693581203058,0.93036455,25811.0,25810.0,0.02]
[1693581203270,0.95036455,25811.0,25810.0,0.02]
[1693581204030,0.96936455,25811.0,25810.0,0.022]
[1693581204277,0.95036455,25811.0,25810.0,0.02]
[1693581204698,0.54466455,25811.0,25810.0,0.02]
[1693581205257,0.56366455,25811.0,25810.0,0.022]
[1693581205851,0.019,25811.0,25810.0,0.022]
[1693581206475,0.40608678,25811.0,25810.0,0.022]
[1693581206831,0.38708678,25811.0,25810.0,0.02]
[1693581207228,0.40608678,25811.0,25810.0,0.022]
[1693581207574,0.5437993,25811.0,25810.0,0.022]
[1693581207784,0.5247993,25811.0,25810.0,0.02]
[1693581207913,0.38908678,25811.0,25810.0,0.029]
[1693581208116,0.52685878,25811.0,25810.0,0.029]
[1693581208320,0.52485878,25811.0,25810.0,0.02]
[1693581209833,0.38708678,25811.0,25810.0,0.02]
[1693581210062,0.38908678,25811.0,25810.0,0.029]
[1693581210481,0.38708678,25811.0,25810.0,0.02]
[1693581211542,0.38908678,25811.0,25810.0,0.029]
[1693581211742,0.52677994,25811.0,25810.0,0.029]
[1693581212407,0.27677994,25811.0,25810.0,0.029]
[1693581213952,0.13908678,25811.0,25810.0,0.029]
[1693581218316,0.36855569,25811.0,25810.0,0.029]
[1693581218550,0.79425569,25811.0,25810.0,0.029]
[1693581218747,1.02380827,25811.0,25810.0,0.029]
[1693581220007,1.02380827,25811.0,25809.0,0.12018334]
[1693581220217,0.79310302,25810.0,25809.0,0.12018334]
[1693581220442,1.04245825,25810.0,25809.0,0.12018334]
[1693581220642,1.1801898,25810.0,25809.0,0.12018334]
[1693581220850,1.08816621,25810.0,25809.0,0.12018334]
[1693581221392,0.7744921,25810.0,25809.0,0.12018334]
[1693581221594,0.68246621,25810.0,25809.0,0.12018334]
[1693581222053,0.68546621,25810.0,25809.0,0.12618334]
[1693581222764,0.73137672,25810.0,25809.0,0.12618334]
[1693581223184,0.84946809,25810.0,25809.0,0.12618334]
[1693581223395,0.52817815,25810.0,25809.0,0.12618334]
[1693581225552,0.52807177,25810.0,25809.0,0.12618334]
[1693581225979,0.71171383,25810.0,25809.0,0.12618334]
[1693581226343,0.71131103,25810.0,25809.0,0.12618334]
[1693581226543,0.84940418,25810.0,25809.0,0.12618334]
[1693581226754,0.71131103,25810.0,25809.0,0.12618334]
[1693581227179,2.06656361,25810.0,25809.0,0.12618334]
[1693581227390,2.06656361,25810.0,25803.0,0.1574]
[1693581227391,1.88292155,25810.0,25803.0,0.1574]
[1693581227599,0.09205565,25807.0,25803.0,0.2031]
[1693581227798,0.53628749,25806.0,25803.0,0.2231]
[1693581228223,0.62834314,25806.0,25803.0,0.2031]
[1693581228610,0.09205565,25805.0,25803.0,0.2031]
[1693581228821,0.38708678,25804.0,25801.0,0.2065]
[1693581229026,1.03404314,25804.0,25799.0,0.02]
[1693581229223,0.16920071,25803.0,25799.0,0.02]
[1693581229447,0.38708678,25802.0,25799.0,0.02]
[1693581229647,0.53628749,25802.0,25799.0,0.02]
[1693581229763,0.38708678,25802.0,25799.0,0.02]
[1693581231493,0.39008678,25802.0,25799.0,0.02]
[1693581236961,0.87736546,25802.0,25793.0,0.30046524]
[1693581237163,0.57490071,25801.0,25796.0,0.02]
[1693581237373,0.38708678,25800.0,25796.0,0.02]
[1693581237573,0.53628749,25800.0,25796.0,0.02]
[1693581237779,0.02,25799.0,25794.0,0.3806]
[1693581238003,0.53628749,25798.0,25794.0,0.2271]
[1693581238571,0.38708678,25798.0,25794.0,0.2271]
[1693581239179,0.38708678,25798.0,25794.0,0.1271]
[1693581239960,0.38708678,25798.0,25794.0,0.48006071]
[1693581240164,0.38708678,25798.0,25794.0,0.28193471]